bitfinex-derivatives/quotes_BTCF0:USTF0_20250620
["timestamp","ask_amount","ask_price","bid_price","bid_amount"]
[1750386215720,1.14494507,104820.0,104810.0,1.11232724]
[1750386216024,0.95415927,104820.0,104810.0,1.11232724]
[1750386216223,0.21291593,104820.0,104810.0,1.11232724]
[1750386217522,0.40370173,104820.0,104810.0,1.11232724]
[1750386218223,0.76450173,104820.0,104810.0,1.11232724]
[1750386218625,0.40370173,104820.0,104810.0,1.11232724]
[1750386219520,0.21291593,104820.0,104810.0,1.11232724]
[1750386220126,0.21251593,104820.0,104810.0,1.11232724]
[1750386220826,0.21291593,104820.0,104810.0,1.11232724]
[1750386223630,0.21291593,104820.0,104810.0,1.47312724]
[1750386224029,0.21251593,104820.0,104810.0,1.47312724]
[1750386224330,0.21291593,104820.0,104810.0,1.47312724]
[1750386224631,0.21291593,104820.0,104810.0,1.11232724]
[1750386230035,0.40370173,104820.0,104810.0,1.11232724]
[1750386236124,0.21291593,104820.0,104810.0,1.11232724]
[1750386236329,0.21291593,104820.0,104810.0,1.36277058]
[1750386236529,0.21291593,104820.0,104810.0,1.11232724]
[1750386240337,0.40370173,104820.0,104810.0,0.8618839]
[1750386240543,0.40370173,104820.0,104810.0,1.11232724]
[1750386240743,0.76450173,104820.0,104810.0,1.11232724]
[1750386241043,0.40370173,104820.0,104810.0,1.11232724]
[1750386241444,0.21291593,104820.0,104810.0,1.11232724]
[1750386242139,0.40370173,104820.0,104810.0,1.11232724]
[1750386242536,0.32735987,104820.0,104810.0,1.11232724]
[1750386242736,0.13657407,104820.0,104810.0,1.11232724]
[1750386243144,0.32735987,104820.0,104810.0,1.11232724]
[1750386243736,0.81815987,104820.0,104810.0,1.11232724]
[1750386243937,0.68815987,104820.0,104810.0,1.11232724]
[1750386244343,0.93860321,104820.0,104810.0,1.11232724]
[1750386244744,0.93860321,104820.0,104810.0,1.11228724]
[1750386245437,1.04860321,104820.0,104810.0,1.11228724]
[1750386245638,1.07860321,104820.0,104810.0,1.11228724]
[1750386245842,0.93860321,104820.0,104810.0,1.11228724]
[1750386246548,0.68815987,104820.0,104810.0,1.11228724]
[1750386246749,0.93860321,104820.0,104810.0,1.11228724]
[1750386247958,0.57780321,104820.0,104810.0,1.11228724]
[1750386248450,0.32735987,104820.0,104810.0,1.11228724]
[1750386248746,0.78815987,104820.0,104810.0,1.11228724]
[1750386248949,0.68815987,104820.0,104810.0,1.11228724]
[1750386251148,0.32735987,104820.0,104810.0,1.11228724]
[1750386252552,0.40371716,104820.0,104810.0,1.11228724]
[1750386252749,0.50371716,104820.0,104810.0,1.11228724]
[1750386252954,0.40371716,104820.0,104810.0,1.11228724]
[1750386253555,0.32735987,104820.0,104810.0,1.11228724]
[1750386253852,0.57780321,104820.0,104810.0,1.11228724]
[1750386254052,0.70780321,104820.0,104810.0,1.11228724]
[1750386254253,0.57780321,104820.0,104810.0,1.11228724]
[1750386254561,1.03860321,104820.0,104810.0,1.11228724]
[1750386254754,0.93860321,104820.0,104810.0,1.11228724]
[1750386254954,1.03860321,104820.0,104810.0,1.11228724]
[1750386255249,1.02860321,104820.0,104810.0,1.11228724]
[1750386255662,0.93860321,104820.0,104810.0,1.11228724]
[1750386257046,1.06860321,104820.0,104810.0,1.11228724]
[1750386257356,0.80815987,104820.0,104810.0,0.8311439]
[1750386257655,1.09110321,104820.0,104810.0,1.08158724]
[1750386257955,1.09110321,104820.0,104810.0,1.11168724]
[1750386264857,1.34154655,104820.0,104810.0,0.2838039]
[1750386265057,1.37384655,104820.0,104810.0,0.7682039]
[1750386265264,1.39544655,104820.0,104810.0,0.7682039]
[1750386265964,1.39544655,104820.0,104810.0,0.1908039]
[1750386267556,1.14500321,104820.0,104810.0,0.2228039]
[1750386268163,1.2213358,104820.0,104810.0,0.47324724]
[1750386268463,1.14500321,104820.0,104810.0,0.47324724]
[1750386269154,1.22133361,104820.0,104810.0,0.47324724]
[1750386269553,1.19973361,104820.0,104810.0,0.47324724]
[1750386271567,1.19973361,104820.0,104810.0,0.53604724]
[1750386274768,1.16743361,104820.0,104810.0,0.53604724]
[1750386277163,1.16743361,104820.0,104810.0,0.2856039]
[1750386277466,1.16743361,104820.0,104810.0,0.53604724]
[1750386283666,1.09110321,104820.0,104810.0,0.53604724]
[1750386283866,1.05860321,104820.0,104810.0,0.53604724]
[1750386291474,1.05860321,104820.0,104810.0,0.2856039]
[1750386291680,1.05860321,104820.0,104810.0,0.53604724]
[1750386292880,1.15406146,104820.0,104810.0,0.53604724]
[1750386298184,0.79326146,104820.0,104810.0,0.53604724]
[1750386298383,1.15406146,104820.0,104810.0,0.53604724]
[1750386304489,0.79326146,104820.0,104810.0,0.53604724]
[1750386304696,1.15406146,104820.0,104810.0,0.53604724]
[1750386308399,1.05860321,104820.0,104810.0,0.53604724]
[1750386309300,1.05860321,104820.0,104810.0,0.50454724]
[1750386309597,1.05860321,104820.0,104810.0,0.53714724]
[1750386312900,1.05860321,104820.0,104810.0,0.50454724]
[1750386313095,1.05860321,104820.0,104810.0,0.53704724]
[1750386315091,0.80815987,104820.0,104810.0,0.53704724]
[1750386315293,1.05860321,104820.0,104810.0,0.53704724]
[1750386317005,0.68815987,104820.0,104810.0,0.53704724]
[1750386317200,1.06860321,104820.0,104810.0,0.53704724]
[1750386317395,0.68815987,104820.0,104810.0,0.53704724]
[1750386317597,0.68775987,104820.0,104810.0,0.53704724]
[1750386317796,0.68815987,104820.0,104810.0,0.53704724]
[1750386318198,0.76451014,104820.0,104810.0,0.53704724]
[1750386318401,1.02495348,104820.0,104810.0,0.53704724]
[1750386318601,0.77451014,104820.0,104810.0,0.53704724]
[1750386319104,1.02495348,104820.0,104810.0,0.53704724]
[1750386319607,1.01495348,104820.0,104810.0,0.53704724]
[1750386320203,1.13495348,104820.0,104810.0,0.53704724]
[1750386320400,1.01495348,104820.0,104810.0,0.53704724]
[1750386320797,0.76451014,104820.0,104810.0,0.53704724]
[1750386321203,0.85451014,104820.0,104810.0,0.53704724]
[1750386324012,1.10495348,104820.0,104810.0,0.53704724]
[1750386328208,1.02860321,104820.0,104810.0,0.53704724]
[1750386329814,1.10493208,104820.0,104810.0,0.53704724]
[1750386332523,1.02860321,104820.0,104810.0,0.53704724]
[1750386333110,0.68815987,104820.0,104810.0,0.53704724]
[1750386333315,1.05860321,104820.0,104810.0,0.53704724]
[1750386333719,0.69780321,104820.0,104810.0,0.53704724]
[1750386333922,1.05860321,104820.0,104810.0,0.53704724]
[1750386334726,0.93860321,104820.0,104810.0,0.53704724]
[1750386335025,1.06860321,104820.0,104810.0,0.53704724]
[1750386336125,1.06860321,104820.0,104810.0,0.2866039]
[1750386336321,1.06860321,104820.0,104810.0,0.53704724]
[1750386341419,1.06860321,104820.0,104810.0,0.2866039]
[1750386341625,1.31904655,104820.0,104810.0,0.2228039]
[1750386341928,1.40584655,104820.0,104810.0,0.2228039]
[1750386342523,1.48219393,104820.0,104810.0,0.2228039]
[1750386343828,1.40584655,104820.0,104810.0,0.2228039]
[1750386344927,1.48218872,104820.0,104810.0,0.2228039]
[1750386347230,1.84298872,104820.0,104810.0,0.2228039]
[1750386347630,1.76664655,104820.0,104810.0,0.2228039]
[1750386348422,1.76664655,104820.0,104810.0,0.47324724]
[1750386348624,1.84297683,104820.0,104810.0,0.2228039]
[1750386349127,1.12137683,104820.0,104810.0,0.1908039]
[1750386349432,1.76664655,104820.0,104810.0,0.1908039]
[1750386349832,1.91030159,104820.0,104810.0,0.1908039]
[1750386350241,1.98662974,104820.0,104810.0,0.1908039]
[1750386350434,1.98662974,104820.0,104810.0,0.2238039]
[1750386351348,1.91030159,104820.0,104810.0,0.2238039]
[1750386351727,1.91030159,104820.0,104810.0,0.47424724]
[1750386351927,1.65985825,104820.0,104810.0,0.47424724]
[1750386352328,1.7553165,104820.0,104810.0,0.47424724]
[1750386352535,1.65985825,104820.0,104810.0,0.2238039]
[1750386352833,1.63825825,104820.0,104810.0,0.47424724]
[1750386353937,1.88870159,104820.0,104810.0,0.2238039]
[1750386354345,1.91030159,104820.0,104810.0,0.2238039]
[1750386357349,2.04294159,104820.0,104810.0,0.2238039]
[1750386359649,2.04294159,104820.0,104810.0,0.21449517]
[1750386359854,2.13839984,104820.0,104810.0,0.21449517]
[1750386362757,1.63751316,104820.0,104810.0,0.21449517]
[1750386362957,2.13839984,104820.0,104810.0,0.21449517]
[1750386363557,2.11679984,104820.0,104810.0,0.21449517]
[1750386365961,2.11679984,104820.0,104810.0,0.27689517]
[1750386366161,1.39519984,104820.0,104810.0,0.27689517]
[1750386366363,2.11679984,104820.0,104810.0,0.27689517]
[1750386366559,2.11679984,104820.0,104810.0,0.0954]
[1750386368264,2.11679984,104820.0,104810.0,0.0641]
[1750386369066,2.11679984,104820.0,104810.0,0.254904]
[1750386369671,1.95614159,104820.0,104810.0,0.033]
[1750386369866,2.11219984,104820.0,104810.0,0.033]
[1750386371669,1.39059984,104820.0,104810.0,0.033]
[1750386371968,2.11219984,104820.0,104810.0,0.033]
[1750386372470,2.11219984,104820.0,104810.0,0.223804]
[1750386372670,2.11219984,104820.0,104810.0,0.256704]
[1750386372969,2.11219984,104820.0,104810.0,0.0659]
[1750386373468,0.190804,104810.0,104800.0,0.3169171]
[1750386373656,1.06204734,104810.0,104800.0,0.3501171]
[1750386373860,1.06204734,104810.0,104800.0,0.3830171]
[1750386374661,1.07895903,104810.0,104800.0,0.3840171]
[1750386376964,1.07895903,104810.0,104800.0,0.3850171]
[1750386377164,1.07995903,104810.0,104800.0,0.3840171]
[1750386377363,1.07995903,104810.0,104800.0,0.3830171]
[1750386377562,1.08095903,104810.0,104800.0,0.3830171]
[1750386379976,1.17641728,104810.0,104800.0,0.3830171]
[1750386380575,0.81561728,104810.0,104800.0,0.3830171]
[1750386380771,1.17641728,104810.0,104800.0,0.3830171]
[1750386380978,1.18059135,104810.0,104800.0,0.3830171]
[1750386381776,1.18059135,104810.0,104800.0,0.3353121]
[1750386383675,1.22838722,104810.0,104800.0,0.0968]
[1750386383873,1.22838722,104810.0,104800.0,0.2876222]
[1750386384271,1.32374096,104810.0,104800.0,0.2876222]
[1750386384478,1.32374096,104810.0,104800.0,0.0968]
[1750386384681,1.35534096,104810.0,104800.0,0.0968]
[1750386390490,0.19566096,104810.0,104800.0,0.0968]
[1750386390681,0.33424424,104820.0,104810.0,0.190804]
[1750386390887,0.4074368,104820.0,104810.0,0.88248614]
[1750386391086,0.4074368,104820.0,104810.0,1.13292948]
[1750386391087,0.2162467,104820.0,104810.0,1.13292948]
[1750386391281,0.273,104820.0,104810.0,1.13292948]
[1750386391783,0.1732,104820.0,104810.0,1.70996948]
[1750386392485,0.26855374,104820.0,104810.0,1.70996948]
[1750386392690,0.24942495,104820.0,104810.0,1.70996948]
[1750386392887,0.19952495,104820.0,104810.0,1.90078548]
[1750386393187,0.24952495,104820.0,104810.0,1.90078548]
[1750386393386,0.21118495,104820.0,104810.0,2.15122882]
[1750386393590,0.0024,104820.0,104810.0,1.90078548]
[1750386393787,0.28118495,104820.0,104810.0,2.15122882]
[1750386393987,0.0724,104820.0,104810.0,2.16812025]
[1750386394187,0.20456,104820.0,104810.0,2.16812025]
[1750386394390,0.20496,104820.0,104810.0,2.16812025]
[1750386394585,0.12752216,104820.0,104810.0,2.16812025]
[1750386394785,0.12752216,104820.0,104810.0,1.72664977]
[1750386395096,0.12752216,104820.0,104810.0,2.51746577]
[1750386395590,0.12752216,104820.0,104810.0,2.16746577]
[1750386395792,0.12752216,104820.0,104810.0,2.16946577]
[1750386395991,0.07702495,104830.0,104820.0,0.1907858]
[1750386396189,0.45035255,104830.0,104820.0,1.08496134]
[1750386396492,0.3741276,104830.0,104820.0,1.69402134]
[1750386396886,0.2415676,104830.0,104820.0,1.69402134]
[1750386397198,0.3741276,104830.0,104820.0,1.69402134]
[1750386397383,0.2415676,104830.0,104820.0,1.69402134]
[1750386397891,0.3241276,104830.0,104820.0,1.69402134]
[1750386398389,0.0008,104830.0,104820.0,1.69402134]
[1750386398593,0.44723685,104840.0,104830.0,0.1907676]
[1750386398793,0.07702495,104840.0,104830.0,1.47352537]
[1750386398988,0.20958495,104840.0,104830.0,1.47352537]
[1750386399186,0.07622495,104840.0,104830.0,1.47352537]
[1750386399493,0.07662495,104840.0,104830.0,1.47352537]
[1750386399685,0.0024,104840.0,104830.0,0.89660537]
[1750386399887,0.0024,104840.0,104830.0,1.47352537]
[1750386400088,0.002,104840.0,104830.0,1.47352537]
[1750386400491,0.0004,104840.0,104830.0,1.47352537]
[1750386401090,0.39951755,104850.0,104840.0,0.1907494]
[1750386401291,0.43031755,104850.0,104840.0,0.83298717]
[1750386401497,0.29775755,104850.0,104840.0,0.86498717]
[1750386401795,0.43023755,104850.0,104840.0,0.86498717]
[1750386402896,0.43223755,104850.0,104840.0,0.86498717]
[1750386403398,0.2235326,104850.0,104840.0,0.86498717]
[1750386403698,0.16528,104850.0,104840.0,0.86498717]
[1750386403892,0.3560112,104850.0,104840.0,0.86498717]
[1750386404597,0.2235312,104850.0,104840.0,0.86498717]
[1750386404796,0.0328,104850.0,104840.0,0.86498717]
[1750386405598,0.0028,104850.0,104840.0,0.86498717]
[1750386405897,0.0028,104850.0,104840.0,1.11532494]
[1750386406096,0.002,104850.0,104840.0,1.11532494]
[1750386406402,0.0024,104850.0,104840.0,1.11532494]
[1750386406995,0.0024,104850.0,104840.0,1.41002494]
[1750386407201,0.002,104850.0,104840.0,1.41002494]
[1750386407501,0.0024,104850.0,104840.0,1.41002494]
[1750386410398,0.00657407,104850.0,104840.0,1.41002494]
[1750386415707,0.00457407,104850.0,104840.0,1.41202494]
[1750386415908,0.00457407,104850.0,104840.0,1.41302494]
[1750386416205,0.06147398,104850.0,104840.0,1.41302494]
[1750386419603,0.00457407,104850.0,104840.0,1.41302494]
[1750386419804,0.00457407,104850.0,104840.0,1.60378493]
[1750386420004,0.00417407,104850.0,104840.0,1.41302494]
[1750386420309,0.00457407,104850.0,104840.0,1.60378493]
[1750386422101,0.00457407,104850.0,104840.0,1.41302494]
[1750386425013,0.00457407,104850.0,104840.0,1.66298471]
[1750386426708,0.00457407,104850.0,104840.0,1.69518471]
[1750386427617,0.00457407,104850.0,104840.0,2.01518471]
[1750386427817,0.00457407,104850.0,104840.0,1.69518471]
[1750386428117,0.00457407,104850.0,104840.0,2.00518471]
[1750386428708,0.00457407,104850.0,104840.0,1.69518471]
[1750386429615,0.08079902,104850.0,104840.0,1.69518471]
[1750386431517,0.08079902,104850.0,104840.0,2.05518471]
[1750386432220,0.08079902,104850.0,104840.0,1.69518471]
[1750386432519,0.08079902,104850.0,104840.0,2.04518471]
[1750386432716,0.08079902,104850.0,104840.0,1.69518471]
[1750386433521,0.08079902,104850.0,104840.0,2.01518471]
[1750386434522,0.08079902,104850.0,104840.0,1.69518471]
[1750386434720,0.08079902,104850.0,104840.0,2.02518471]
[1750386435423,0.08079902,104850.0,104840.0,1.69518471]
[1750386435619,0.00457407,104850.0,104840.0,1.69518471]
[1750386435921,0.08087176,104850.0,104840.0,1.69518471]
[1750386436625,0.00457407,104850.0,104840.0,1.69518471]
[1750386438525,0.00457407,104850.0,104840.0,2.40414471]
[1750386439718,0.00457407,104850.0,104840.0,2.77414471]
[1750386440232,0.00457407,104850.0,104840.0,2.40414471]
[1750386440714,0.00457407,104850.0,104840.0,2.72414471]
[1750386442523,0.08088205,104850.0,104840.0,2.72414471]
[1750386443227,0.08048205,104850.0,104840.0,2.72414471]
[1750386443429,0.08088205,104850.0,104840.0,2.72414471]
[1750386443830,0.00457407,104850.0,104840.0,2.72414471]
[1750386446640,0.08088205,104850.0,104840.0,2.72414471]
[1750386446926,0.08088205,104850.0,104840.0,0.8492494]
[1750386447132,0.42010527,104850.0,104840.0,1.05497294]
[1750386447430,0.74662502,104850.0,104840.0,1.05497294]
[1750386447630,0.67031704,104850.0,104840.0,1.1310694]
[1750386447827,0.42010527,104850.0,104840.0,1.63149294]
[1750386448334,0.42010527,104850.0,104840.0,1.62949294]
[1750386448529,0.42110527,104850.0,104840.0,1.62849294]
[1750386448826,0.42110527,104850.0,104840.0,1.05197294]
[1750386449033,0.42110527,104850.0,104840.0,1.62849294]
[1750386449334,0.42210527,104850.0,104840.0,1.26773294]
[1750386449724,0.67231704,104850.0,104840.0,1.26773294]
[1750386450035,0.67231704,104850.0,104840.0,0.69117294]
[1750386450336,0.67231704,104850.0,104840.0,1.26773294]
[1750386451426,0.42210527,104850.0,104840.0,1.26773294]
[1750386452234,0.67231704,104850.0,104840.0,1.01752117]
[1750386452636,0.74854192,104850.0,104840.0,1.01752117]
[1750386453734,0.67231704,104850.0,104840.0,1.01752117]
[1750386454127,0.42210527,104850.0,104840.0,1.01752117]
[1750386454327,0.67231704,104850.0,104840.0,1.01752117]
[1750386454521,0.42210527,104850.0,104840.0,1.26773294]
[1750386454725,0.42210527,104850.0,104840.0,0.7673094]
[1750386454925,0.42210527,104850.0,104840.0,1.26773294]
[1750386455238,0.67231704,104850.0,104840.0,1.26773294]
[1750386455536,0.67231704,104850.0,104840.0,1.01752117]
[1750386456632,0.67231704,104850.0,104840.0,0.44096117]
[1750386456831,0.1907494,104840.0,104830.0,1.16098857]
[1750386457032,0.6983571,104840.0,104830.0,1.16098857]
[1750386457227,0.44814533,104840.0,104830.0,1.16098857]
[1750386457936,0.46154533,104840.0,104830.0,1.52178857]
[1750386458625,0.13839593,104840.0,104830.0,1.19504034]
[1750386458827,0.0622,104840.0,104830.0,1.77200034]
[1750386459035,0.032,104840.0,104830.0,1.86810034]
[1750386459428,0.0324,104840.0,104830.0,1.86810034]
[1750386460836,0.0324,104840.0,104830.0,1.61799463]
[1750386464140,0.0014,104840.0,104830.0,1.61799463]
[1750386464745,0.1921494,104840.0,104830.0,0.6946168]
[1750386464935,0.2572494,104840.0,104830.0,1.52189463]
[1750386466246,0.2572494,104840.0,104830.0,1.55279463]
[1750386468348,0.2572494,104840.0,104830.0,1.58439463]
[1750386469747,0.2572494,104840.0,104830.0,1.22359463]
[1750386469943,0.2572494,104840.0,104830.0,1.58439463]
[1750386471447,0.4576194,104840.0,104830.0,1.52221463]
[1750386472334,0.4576194,104840.0,104830.0,0.94493463]
[1750386472537,0.4576194,104840.0,104830.0,1.52229463]
[1750386472743,0.38142347,104840.0,104830.0,1.55379463]
[1750386474834,0.45765754,104840.0,104830.0,1.47460443]
[1750386475239,0.46768048,104840.0,104830.0,1.47460443]
[1750386476444,0.46768048,104840.0,104830.0,1.50700443]
[1750386478648,0.43448048,104840.0,104830.0,1.47448443]
[1750386478953,0.46598048,104840.0,104830.0,1.47448443]
[1750386479247,0.46598048,104840.0,104830.0,1.11368443]
[1750386479444,0.46598048,104840.0,104830.0,0.44106783]
[1750386479749,0.71629831,104840.0,104830.0,0.76799]
[1750386479950,0.71629831,104840.0,104830.0,0.19075]
[1750386480146,1.09621798,104840.0,104830.0,0.19075]
[1750386480538,1.09621798,104840.0,104830.0,0.7679676]
[1750386480743,1.09621798,104840.0,104830.0,0.1907676]
[1750386480948,1.34677815,104840.0,104830.0,0.1907676]
[1750386481454,0.84590015,104840.0,104830.0,0.1814605]
[1750386481642,1.34677815,104840.0,104830.0,0.1814605]
[1750386482650,1.25142441,104840.0,104830.0,0.1814605]
[1750386482845,1.00097864,104840.0,104830.0,0.1814605]
[1750386483238,0.75054641,104840.0,104830.0,0.1814605]
[1750386483442,1.00097864,104840.0,104830.0,0.1814605]
[1750386484555,0.70641375,104840.0,104830.0,0.1814605]
[1750386485053,0.45598152,104840.0,104830.0,0.1814605]
[1750386485653,0.81678152,104840.0,104830.0,0.1814605]
[1750386486253,0.45598152,104840.0,104830.0,0.1814605]
[1750386487454,0.46579078,104840.0,104830.0,0.1814605]
[1750386488446,0.95919078,104840.0,104830.0,0.1814605]
[1750386488851,0.59839078,104840.0,104830.0,0.1814605]
[1750386489053,0.46579078,104840.0,104830.0,0.1814605]
[1750386489449,0.59839078,104840.0,104830.0,0.1814605]
[1750386489955,0.88293273,104840.0,104830.0,0.1814605]
[1750386491654,0.1907676,104830.0,104820.0,0.61588833]
[1750386491956,0.46131297,104830.0,104820.0,0.61588833]
[1750386492756,0.46131297,104830.0,104820.0,0.61688833]
[1750386493450,0.33131297,104830.0,104820.0,0.61688833]
[1750386493758,0.45231297,104830.0,104820.0,0.61788833]
[1750386494152,0.45231297,104830.0,104820.0,0.61588833]
[1750386494756,0.45231297,104830.0,104820.0,0.3654561]
[1750386495057,0.45231297,104830.0,104820.0,0.61588833]
[1750386495952,0.33231297,104830.0,104820.0,0.61588833]
[1750386496160,0.46231297,104830.0,104820.0,0.64608833]
[1750386499563,0.46231297,104830.0,104820.0,0.61588833]
[1750386499864,0.49331297,104830.0,104820.0,0.61588833]
[1750386500752,0.49748704,104830.0,104820.0,0.61588833]
[1750386501365,0.49748704,104830.0,104820.0,0.64838833]
[1750386502561,0.39024167,104830.0,104820.0,0.64838833]
[1750386502761,0.26024167,104830.0,104820.0,0.64838833]
[1750386502960,0.65067724,104830.0,104820.0,0.64839167]
[1750386507868,0.65067724,104830.0,104820.0,0.1907719]
[1750386508070,0.68387724,104830.0,104820.0,0.1907719]
[1750386508270,0.68387724,104830.0,104820.0,0.44120747]
[1750386508870,0.1907857,104820.0,104810.0,1.00801707]
[1750386509062,0.85051563,104820.0,104810.0,1.00801707]
[1750386510174,0.85051563,104820.0,104810.0,1.00901707]
[1750386510376,0.85051563,104820.0,104810.0,1.01101707]
[1750386511174,0.88330057,104820.0,104810.0,1.01101707]
[1750386511374,0.88330057,104820.0,104810.0,1.00901707]
[1750386511574,0.88430057,104820.0,104810.0,1.00801707]
[1750386512371,1.24510057,104820.0,104810.0,0.64721707]
[1750386514581,1.24510057,104820.0,104810.0,0.3967815]
[1750386515083,1.24510057,104820.0,104810.0,0.64721707]
[1750386515776,0.88430057,104820.0,104810.0,0.64721707]
[1750386515977,0.88847464,104820.0,104810.0,0.64721707]
[1750386516484,1.24927464,104820.0,104810.0,0.64721707]
[1750386517285,1.21647464,104820.0,104810.0,0.64721707]
[1750386517480,1.21647464,104820.0,104810.0,0.67751707]
[1750386519584,1.21647464,104820.0,104810.0,0.64721707]
[1750386521284,0.77937534,104820.0,104810.0,0.64721707]
[1750386521484,0.85567464,104820.0,104810.0,0.64721707]
[1750386522684,0.77937534,104820.0,104810.0,0.64721707]
[1750386523595,0.77937534,104820.0,104810.0,1.00801707]
[1750386524090,0.60518787,104820.0,104810.0,1.00801707]
[1750386524285,0.57518787,104820.0,104810.0,1.04081707]
[1750386524986,0.57518787,104820.0,104810.0,0.7903815]
[1750386525287,0.57518787,104820.0,104810.0,1.04081707]
[1750386526989,0.57582787,104820.0,104810.0,1.04081707]
[1750386527191,0.44270787,104820.0,104810.0,1.04081707]
[1750386527392,0.57582787,104820.0,104810.0,1.04081707]
[1750386529488,0.43582787,104820.0,104810.0,1.04081707]
[1750386530286,0.47903977,104820.0,104810.0,1.04081707]
[1750386532402,0.47903977,104820.0,104810.0,0.4295815]
[1750386532591,0.47903977,104820.0,104810.0,1.04081707]
[1750386532898,0.5553183,104820.0,104810.0,1.04081707]
[1750386533105,0.5886183,104820.0,104810.0,1.04081707]
[1750386538303,0.4386183,104820.0,104810.0,1.04081707]
[1750386538496,0.50233977,104820.0,104810.0,1.04081707]
[1750386539301,0.00517407,104820.0,104810.0,1.04081707]
[1750386539495,0.08151717,104820.0,104810.0,1.86881264]
[1750386539802,0.08191717,104820.0,104810.0,1.86881264]
[1750386541106,0.08151717,104820.0,104810.0,1.86881264]
[1750386541500,0.08191717,104820.0,104810.0,1.86881264]
[1750386544305,0.00557407,104820.0,104810.0,1.86881264]
[1750386547203,0.00517407,104820.0,104810.0,1.86881264]
[1750386547404,0.00557407,104820.0,104810.0,1.86881264]
[1750386550313,1.53848248,104820.0,104800.0,0.3608]
[1750386550511,0.1908222,104800.0,104790.0,0.0008]
[1750386550711,0.1908404,104790.0,104780.0,0.28722394]
[1750386550917,0.97165662,104790.0,104780.0,0.53765951]
[1750386551115,1.06768056,104790.0,104780.0,0.53765951]
[1750386551314,1.14388879,104790.0,104780.0,0.53765951]
[1750386551614,1.14388879,104790.0,104780.0,0.28722394]
[1750386551810,1.15393106,104790.0,104780.0,0.00135434]
[1750386552004,1.53744735,104790.0,104780.0,0.00135434]
[1750386552204,1.21080283,104790.0,104780.0,0.00095434]
[1750386552401,1.21080283,104790.0,104780.0,0.00135434]
[1750386552616,1.21080283,104790.0,104780.0,0.00095434]
[1750386552912,1.21107982,104790.0,104780.0,0.00135434]
[1750386553110,1.78911982,104790.0,104780.0,0.00135434]
[1750386553315,1.86521776,104790.0,104780.0,0.00335434]
[1750386553815,1.86521776,104790.0,104780.0,0.00435434]
[1750386554716,2.03983238,104790.0,104780.0,0.00435434]
[1750386554917,2.23069638,104790.0,104780.0,0.00435434]
[1750386555116,0.1908768,104770.0,104760.0,0.3348487]
[1750386555317,1.09949438,104770.0,104760.0,0.3348487]
[1750386555618,1.19069438,104770.0,104760.0,0.3348487]
[1750386556413,1.06069438,104770.0,104760.0,0.3348487]
[1750386556609,1.18069438,104770.0,104760.0,0.3348487]
[1750386557011,1.18069438,104770.0,104760.0,0.3378487]
[1750386557610,1.06069438,104770.0,104760.0,0.3378487]
[1750386557811,1.20069438,104770.0,104760.0,0.3378487]
[1750386558114,1.20069438,104770.0,104760.0,0.3398487]
[1750386558611,1.20069438,104770.0,104760.0,0.59056126]
[1750386559016,1.20069438,104770.0,104760.0,0.3398487]
[1750386559410,1.17969158,104770.0,104760.0,0.3398487]
[1750386559813,1.16969158,104770.0,104760.0,0.3398487]
[1750386560518,1.17386565,104770.0,104760.0,0.3398487]
[1750386566828,1.04386565,104770.0,104760.0,0.3398487]
[1750386567026,1.18386565,104770.0,104760.0,0.3398487]
[1750386568523,1.04386565,104770.0,104760.0,0.3398487]
[1750386568730,1.19386565,104770.0,104760.0,0.3398487]
[1750386575226,1.21486845,104770.0,104760.0,0.3398487]
[1750386576135,0.84309165,104770.0,104760.0,0.59056126]
[1750386576336,1.03396845,104770.0,104760.0,0.62306126]
[1750386579339,0.97695087,104770.0,104760.0,0.62306126]
[1750386580131,1.05297434,104770.0,104760.0,0.62306126]
[1750386585243,1.18297434,104770.0,104760.0,0.62306126]
[1750386592249,0.46137434,104770.0,104760.0,0.62306126]
[1750386592440,1.18297434,104770.0,104760.0,0.62306126]
[1750386593939,1.18297434,104770.0,104760.0,0.3723487]
[1750386594843,1.43369346,104770.0,104760.0,0.62306782]
[1750386595044,1.35766999,104770.0,104760.0,0.62306782]
[1750386598145,1.22766999,104770.0,104760.0,0.62306782]
[1750386598350,1.36766999,104770.0,104760.0,0.62306782]
[1750386600149,1.36766999,104770.0,104760.0,0.3723487]
[1750386600352,1.36766999,104770.0,104760.0,0.59056782]
[1750386601054,1.36766999,104770.0,104760.0,0.58976782]
[1750386601446,1.11231912,104770.0,104760.0,0.58976782]
[1750386601647,1.30319592,104770.0,104760.0,0.58976782]
[1750386601945,1.30319592,104770.0,104760.0,0.59016782]
[1750386602148,1.30736999,104770.0,104760.0,0.59016782]
[1750386605354,1.37026999,104770.0,104760.0,0.59016782]
[1750386608057,1.50026999,104770.0,104760.0,0.59016782]
[1750386608861,1.49026999,104770.0,104760.0,0.59016782]
[1750386609157,1.49026999,104770.0,104760.0,0.62136782]
[1750386612658,1.58562373,104770.0,104760.0,0.62136782]
[1750386613753,1.72922384,104770.0,104760.0,0.2917257]
[1750386614260,1.6338701,104770.0,104760.0,0.2917257]
[1750386614957,1.6358701,104770.0,104760.0,0.2897257]
[1750386616062,1.38515098,104770.0,104760.0,0.2897257]
[1750386616263,1.6388701,104770.0,104760.0,0.2867257]
[1750386617249,1.6388701,104770.0,104760.0,0.53744482]
[1750386618665,1.6388701,104770.0,104760.0,0.56754482]
[1750386619966,1.6388701,104770.0,104760.0,0.3168257]
[1750386620262,0.190895,104760.0,104750.0,0.14493281]
[1750386620464,0.190895,104760.0,104750.0,0.33582781]
[1750386620465,1.28973324,104760.0,104750.0,0.33582781]
[1750386620651,1.43248353,104760.0,104750.0,0.33502781]
[1750386620856,1.1818604,104760.0,104750.0,0.33542781]
[1750386621055,1.8917004,104760.0,104750.0,0.00135461]
[1750386621257,2.18251551,104760.0,104750.0,0.19226781]
[1750386621463,2.18351551,104760.0,104750.0,0.19226781]
[1750386621759,2.37443551,104760.0,104750.0,0.00135461]
[1750386621961,0.1909132,104750.0,104740.0,0.0057]
[1750386622156,0.1909497,104730.0,104720.0,0.27045208]
[1750386622357,1.37876497,104730.0,104720.0,0.33593428]
[1750386622556,1.37876497,104730.0,104720.0,0.36593428]
[1750386622557,1.28916497,104730.0,104720.0,0.36593428]
[1750386622760,1.14919531,104730.0,104720.0,0.36633428]
[1750386623061,1.11879531,104730.0,104720.0,0.61714939]
[1750386623259,1.11879531,104730.0,104720.0,0.36633428]
[1750386623456,1.18089531,104730.0,104720.0,0.36633428]
[1750386623658,1.18189531,104730.0,104720.0,0.36593428]
[1750386623854,1.43271042,104730.0,104720.0,0.33553428]
[1750386624068,1.57588771,104730.0,104720.0,0.33553428]
[1750386624258,1.57688771,104730.0,104720.0,0.33553428]
[1750386624656,1.93770282,104730.0,104720.0,0.00095488]
[1750386624869,1.6106421,104730.0,104720.0,0.00135488]
[1750386625070,1.9392114,104730.0,104720.0,0.00095488]
[1750386625367,1.68839629,104730.0,104720.0,0.00135488]
[1750386625868,1.9392114,104730.0,104720.0,0.00135488]
[1750386626168,1.44753673,104730.0,104720.0,0.00095488]
[1750386626361,1.69835184,104730.0,104720.0,0.00135488]
[1750386626760,1.77441954,104730.0,104720.0,0.00135488]
[1750386627264,1.77441954,104730.0,104720.0,0.19232278]